Cogmind - Beta 11.1 @@@ ROGUE MODE // 2022.05.17 @ 01:02:05 Player: RX86 Result: Destroyed by D-53 Grenadier with Mini Grenade Launcher Performance ------------- Evolutions (0) 0 Regions Visited (4) 800 Robots Destroyed (22) 110 Value Destroyed (508) 508 Prototype IDs (23) 460 Alien Tech Used (0) 0 Bonus (19) 19 TOTAL SCORE: 1897 Bonus ------- High Alert Combat Kills 19 Cogmind --------- Core Integrity 0/250 Matter 300/300 Energy 100/100 System Corruption 0% Temperature Cool (0) Movement Walking (190) Ox1 Location -9/Mines Parts ------- > --- POWER (1) -------- (None) > --- PROPULSION (2) --- Aluminum Leg > --- UTILITY (2) ------ Medium Storage Unit Makeshift System Shield > --- WEAPON (2) ------- Makeshift Axe > --- INVENTORY (10) --- Humpback Lightpack 2.0 Sensor Array Light Armor Plating Shock Rifle Grenade Launcher Makeshift Axe Peak State ------------ > --- POWER ------------ Makeshift Power Source > --- PROPULSION ------- Aluminum Leg Carbon-fiber Leg > --- UTILITY ---------- Medium Storage Unit Makeshift System Shield > --- WEAPON ----------- Grenade Launcher Makeshift Axe > --- INVENTORY -------- Aluminum Leg Humpback Lightpack 2.0 Light Armor Plating Shock Rifle Grenade Launcher Makeshift Axe [Rating: 22] Favorites ----------- Power Ion Engine Engine Ion Engine Propulsion Aluminum Leg Treads Light Treads Leg Aluminum Leg Utility Small Storage Unit Device Sensor Array Storage Small Storage Unit Hackware Makeshift System Shield Protection Light Armor Plating Weapon Grenade Launcher Energy Gun EM Shotgun Launcher Grenade Launcher Slashing Weapon Mining Claw Build | -11 -10 -10 -10 -9 ------- Run | Scr Mat Min Exi Min Slots Evolved . | . . . . . Power . | . . . . . Propulsion . | . . . . . Utility . | . . . . . Weapon . | . . . . . Parts Attached 29 | 3 10 6 10 . Power 4 | 1 . 2 1 . Engine 4 | 1 . 2 1 . Core . | . . . . . Reactor . | . . . . . Propulsion 7 | 2 1 . 4 . Treads 2 | . . . 2 . Leg 5 | 2 1 . 2 . Wheel . | . . . . . Hover . | . . . . . Flight . | . . . . . Utility 6 | . 2 1 3 . Device 1 | . 1 . . . Storage 2 | . 1 . 1 . Processor . | . . . . . Hackware 1 | . . . 1 . Protection 2 | . . 1 1 . Artifact . | . . . . . Weapon 12 | . 7 3 2 . Energy Gun 3 | . 3 . . . Energy Cannon . | . . . . . Ballistic Gun . | . . . . . Ballistic Cannon . | . . . . . Launcher 6 | . 4 1 1 . Special Weapon . | . . . . . Impact Weapon . | . . . . . Slashing Weapon 3 | . . 2 1 . Piercing Weapon . | . . . . . Special Melee Weapon . | . . . . . Unidentified Prototypes . | . . . . . Parts Lost 6 | . 2 1 . 3 Power 1 | . . . . 1 Propulsion 1 | . . . . 1 Utility 1 | . . 1 . . Weapon 3 | . 2 . . 1 Highest Loss Streak 3 | . 2 1 . 3 To Critical Strikes . | . . . . . Average Slot Usage (%) 97 | . 91 98 100 95 Engine 13 | . 14 14 14 12 Leg 26 | . 23 28 27 26 Device 3 | . 13 . . . Storage 13 | . 12 14 14 14 Hackware 2 | . . . 4 14 Protection 7 | . . 12 9 . Energy Gun 2 | . 8 . . . Launcher 16 | . 16 19 14 12 Slashing Weapon 8 | . . 8 14 14 Naked Turns . | . . . . . Heaviest Build 20 | 5 17 19 20 20 Greatest Support 25 | 20 20 20 25 25 Greatest Overweight (x) 1 | . 1 . 1 1 Average Overweight (x) . | . . . . . Largest Inventory Capacity 10 | 5 8 8 10 10 Average Capacity 8 | 5 7 8 8 10 Most Carried 10 | 5 6 8 10 10 Average Carried 7 | 3 4 7 8 9 Final Capacity 10 | 5 8 8 10 10 Final Carried 10 | 5 6 8 10 10 Class Distribution -------------------- 100% | Mutant Dominant Class ---------------- Mutant | -10/Materials Mutant | -10/Mines Mutant | -10/Exiles Mutant | -9/Mines Resources | -11 -10 -10 -10 -9 ----------- Run | Scr Mat Min Exi Min Matter Collected 800 | 230 310 160 90 10 Remotely . | . . . . . Salvage Created 744 | . 268 189 287 . Parts 43 | . 17 13 13 . Haulers Intercepted 1 | . 1 . . . Recyclers Shooed . | . . . . . Parts Field Recycled . | . . . . . Retrieved Matter . | . . . . . Parts Self-Destructed . | . . . . . Prevented . | . . . . . Kills | -11 -10 -10 -10 -9 ------- Run | Scr Mat Min Exi Min Combat Hostiles Destroyed 13 | . 9 4 . . AOE 13 | . 9 4 . . Classes Destroyed 8 | . 6 2 . . Worker 1 | . . 1 . . Builder 2 | . 2 . . . Tunneler 1 | . . 1 . . Hauler 1 | . 1 . . . Recycler 3 | . 2 1 . . Watcher 1 | . 1 . . . Swarmer 6 | . 6 . . . Grunt 7 | . 3 4 . . Best Kill Streak 7 | . 7 2 . . Combat Bots Only 6 | . 6 2 . . Max Kills in Single Turn 3 | . 3 2 . . Gunslinging . | . . . . . Exploded 2 | . 2 2 . . Melee . | . . . . . Uniques/NPCs Destroyed . | . . . . . Combat | -11 -10 -10 -10 -9 -------- Run | Scr Mat Min Exi Min Damage Taken 984 | . 405 119 . 460 Core 271 | . 126 7 . 138 Absorbed by Shields . | . . . . . Core Remaining (%) 100 | 100 . . . . Volleys Fired 19 | . 14 5 . . Largest 2 | . 2 2 . . Hottest 60 | . 60 60 . . Shots Fired 32 | . 22 10 . . Gun . | . . . . . Cannon . | . . . . . Launcher 32 | . 22 10 . . Special . | . . . . . Kinetic . | . . . . . Thermal . | . . . . . Explosive 32 | . 22 10 . . Electromagnetic . | . . . . . Robot Hit Streak 2 | . 1 2 . . Robot Miss Streak 2 | . 2 1 . . Penetration Max . | . . . . . Secondary Targets . | . . . . . Shots Hit Robots 23 | . 1 7 15 . Core Hits 37 | . 21 10 6 . Critical Kills . | . . . . . Critical Parts Destroyed . | . . . . . Critical Strikes . | . . . . . Melee Attacks 22 | . . 5 17 . Impact . | . . . . . Slashing 22 | . . 5 17 . Piercing . | . . . . . Sneak Attacks 5 | . . 5 . . Combat Hostiles . | . . . . . Follow-up Attacks . | . . . . . Damage Inflicted 2831 | . 1091 569 1171 . Guns . | . . . . . Cannons . | . . . . . Explosions 1426 | . 1091 335 . . Melee 1405 | . . 234 1171 . Ramming . | . . . . . Kinetic . | . . . . . Thermal 121 | . 79 42 . . Explosive 1305 | . 1012 293 . . Electromagnetic . | . . . . . Impact . | . . . . . Slashing 1405 | . . 234 1171 . Piercing . | . . . . . Highest Corruption . | . . . . . Average Corruption . | . . . . . Corruption Purged . | . . . . . Corruption Blocked . | . . . . . Overload Shots . | . . . . . Overflow Damage 269 | . 16 46 207 . Projectiles . | . . . . . Explosions 16 | . 16 . . . Melee 253 | . . 46 207 . Knockbacks . | . . . . . Impact . | . . . . . Kinetic . | . . . . . Secondary . | . . . . . Self-Inflicted Damage 86 | . 63 23 . . Shots 5 | . 4 1 . . Rammed . | . . . . . Targets Rammed . | . . . . . Kicked . | . . . . . Crushed . | . . . . . Highest Temperature 54 | . 19 54 . . Average Temperature 21 | . 4 26 . . Received Heat Transfer 162 | . 108 54 . . Siege Activations . | . . . . . Robots Corrupted . | . . . . . Combat Hostiles . | . . . . . Parts Fried . | . . . . . Impact Corruptions . | . . . . . Robots Melted . | . . . . . Combat Hostiles . | . . . . . Parts Melted . | . . . . . Heat Transferred 100 | . 50 50 . . Parts Sabotaged . | . . . . . Parts Stolen . | . . . . . Parts Stripped . | . . . . . Power Chain Reactions . | . . . . . Missiles Intercepted . | . . . . . Alert | -11 -10 -10 -10 -9 ------- Run | Scr Mat Min Exi Min Peak Influence 593 | . 370 593 . 15 Initial 124 | . . 124 . . Average 264 | . 132 454 . . Maximum Alert Level 2 | . 1 2 . . Low Security (%) 38 | 100 64 . . 100 Level 1 33 | . 35 39 . . Level 2 27 | . . 60 . . Level 3 . | . . . . . Level 4 . | . . . . . Level 5 . | . . . . . High Security . | . . . . . Max Security . | . . . . . Squads Dispatched 1 | . 1 . . . Investigation . | . . . . . Extermination . | . . . . . Reinforcement 1 | . 1 . . . Assault . | . . . . . Garrison . | . . . . . Intercept . | . . . . . Searches Triggered . | . . . . . Construction Impeded . | . . . . . Haulers Reinforced . | . . . . . Active Scanning Responses . | . . . . . Cargo Convoy Interrupts . | . . . . . Stealth | -11 -10 -10 -10 -9 --------- Run | Scr Mat Min Exi Min Distress Signals . | . . . . . Communications Jammed . | . . . . . Distress Signals . | . . . . . Times Spotted 30 | . 13 4 . 13 Peak Tracking Total 9 | . 5 2 . 9 Tactical Retreats 1 | . . . . 1 Traps | -11 -10 -10 -10 -9 ------- Run | Scr Mat Min Exi Min Traps Triggered 1 | . 1 . . . Indirectly . | . . . . . Trap Hack Attempts . | . . . . . Triggered . | . . . . . Disarmed . | . . . . . Reprogrammed . | . . . . . Reused . | . . . . . Traps Extracted . | . . . . . Installed . | . . . . . Triggered . | . . . . . Machines | -11 -10 -10 -10 -9 ---------- Run | Scr Mat Min Exi Min Machines Disabled 13 | . 2 11 . . Max in Single Turn 11 | . 2 11 . . Machines Sabotaged . | . . . . . Garrisons Compromised . | . . . . . Overloaded Fab Kills . | . . . . . Hacking | -11 -10 -10 -10 -9 --------- Run | Scr Mat Min Exi Min Machines Accessed 13 | . 8 . 5 . Terminals 6 | . 6 . . . Fabricators . | . . . . . Repair Stations . | . . . . . Recycling Units 2 | . 2 . . . Scanalyzers . | . . . . . Garrison Access . | . . . . . Total Hacks 69 | . 19 . 50 . Successful 61 | . 11 . 50 . Failed 8 | . 8 . . . Catastrophic . | . . . . . Database Lockouts . | . . . . . Manual 20 | . 17 . 3 . Terminals 16 | . 16 . . . Fabricators . | . . . . . Repair Stations . | . . . . . Recycling Units 3 | . 3 . . . Scanalyzers . | . . . . . Garrison Access . | . . . . . Terminal Hacks 56 | . 6 . 50 . Record 49 | . . . 49 . Level Access Points 1 | . 1 . . . Terminal Index 1 | . 1 . . . Alert Level 1 | . 1 . . . Unreport Threat 3 | . 3 . . . EX-Prototype ID Bank 1 | . . . 1 . Fabricator Hacks . | . . . . . Repair Station Hacks . | . . . . . Recycling Unit Hacks . | . . . . . Scanalyzer . | . . . . . Garrison Access Hacks . | . . . . . Unauthorized Hacks 5 | . 5 . . . Terminals 3 | . 3 . . . Botnet 3 | . 3 . . . Fabricators . | . . . . . Repair Stations . | . . . . . Recycling Units 2 | . 2 . . . Recyclers 2 | . 2 . . . Scanalyzers . | . . . . . Garrison Access . | . . . . . Data Cores Recovered . | . . . . . Used . | . . . . . Hacking Detections 6 | . 6 . . . Full Trace Events . | . . . . . Feedback Events . | . . . . . Feedback Blocked . | . . . . . Robot Schematics Acquired . | . . . . . Robots Built . | . . . . . Authchips . | . . . . . Time . | . . . . . Total Robot Build Rating . | . . . . . Part Schematics Acquired . | . . . . . Parts Built . | . . . . . Authchips . | . . . . . Time . | . . . . . Total Part Build Rating . | . . . . . Parts Repaired . | . . . . . Time . | . . . . . Parts Recycled . | . . . . . Recycled Matter . | . . . . . Retrieved Matter . | . . . . . Retrieved Components . | . . . . . Parts Scanalyzed . | . . . . . Part Schematics Acquired . | . . . . . Parts Damaged . | . . . . . Bothacking | -11 -10 -10 -10 -9 ------------ Run | Scr Mat Min Exi Min Used RIF Installer . | . . . . . Robots Hacked . | . . . . . Non-combat . | . . . . . Combat . | . . . . . Robot Hacks Applied . | . . . . . Relay Couplers Released . | . . . . . Fabnet Peak Effective % . | . . . . . Robots Rewired 3 | . . . 3 . Allies Hacked . | . . . . . Hacks Repelled . | . . . . . Allies | -11 -10 -10 -10 -9 -------- Run | Scr Mat Min Exi Min Total Allies 4 | . . 1 3 . Largest Group 3 | . . 1 3 3 Highest-Rated Group 37 | . . 31 37 37 Highest-Rated Ally 31 | . . 31 21 21 Total Orders 1 | . . . . 1 FOLLOW 1 | . . . . 1 Ally Attacks 8 | . . . . 8 Total Damage 77 | . . . . 77 Kills . | . . . . . Allies Corrupted . | . . . . . Allies Melted 1 | . . . . 1 Intel | -11 -10 -10 -10 -9 ------- Run | Scr Mat Min Exi Min Robot Analysis Total . | . . . . . Derelict Logs Recovered 1 | . . 1 . . Drone Launches . | . . . . . Drone Recoveries . | . . . . . Exploration | -11 -10 -10 -10 -9 ------------- Run | Scr Mat Min Exi Min Turns Passed 2499 | 52 667 658 1035 87 Spaces Moved 1839 | 38 450 508 773 70 Core 3 | 3 . . . . Treads 1 | . . . 1 . Legs 1835 | 35 450 508 772 70 Wheels . | . . . . . Hover . | . . . . . Flight . | . . . . . Fastest Speed 50 | 50 120 120 120 120 Average Speed 123 | 114 135 120 120 123 Slowest Speed 190 | 120 190 120 190 190 Overloaded Moves . | . . . . . Propulsion Burnouts . | . . . . . Robots Hopped . | . . . . . Cave-ins Triggered . | . . . . . Exploration Rate (%) 57 | 4 75 99 94 17 Regions Visited 4 Branch Regions 3 Pre-discovered Areas 2 | . . 1 1 . Known Exits Taken . | . . . . . Unknown Exits Taken 4 | 1 1 1 1 . Scrap Searched 2 | . . 1 . 1 Spaces Dug 2 | . . . 2 . Terrain Destroyed 294 | . 201 91 2 . Melee 2 | . . . 2 . Projectile . | . . . . . AOE 292 | . 201 91 . . Terrain Rammed . | . . . . . Walls Destroyed . | . . . . . Machines Disabled . | . . . . . Actions | -11 -10 -10 -10 -9 --------- Run | Scr Mat Min Exi Min Total 2001 | 45 485 537 862 72 Wait 13 | . 1 4 8 . Move 1835 | 37 449 507 772 70 Hop . | . . . . . Pick Up 26 | 5 7 5 8 1 Fast Attach 12 | 3 5 2 2 . Attach 5 | . 2 1 2 . Detach . | . . . . . Swap 12 | . 3 3 6 . Drop 25 | . 4 5 15 1 Fire 19 | . 14 5 . . Melee 22 | . . 5 17 . Ram . | . . . . . Kick . | . . . . . Crush . | . . . . . Escape Stasis . | . . . . . Rewire 32 | . . . 32 . Trap . | . . . . . Miscellaneous . | . . . . . Route ------- -11/Scrapyard -10/Materials (discovered 4 exits: *Mat x3 / [*Min]) -10/Mines (discovered 3 exits: *Mat x2 / *Exi) -10/Exiles (discovered 2 exits: [*Min x2]) -9/Mines History --------- Turn | Location | Event 22 | -11/Scrapyard | Discovered new exit (range 16) 53 | -11/Scrapyard | Entered Materials 143 | -10/Materials | Discovered new exit (range 16) 271 | -10/Materials | Discovered new exit (range 6) 303 | -10/Materials | Build established: Mutant 338 | -10/Materials | Identified exit to Materials 354 | -10/Materials | Core integrity fell below 50% 688 | -10/Materials | Discovered new exit (range 12) 720 | -10/Materials | Entered Mines 793 | -10/Mines | Learned location of Zion (-7) 828 | -10/Mines | Discovered exit to Materials (range 6) 1074 | -10/Mines | Received a Mining Laser from a helpful Derelict 1255 | -10/Mines | Discovered exit to Materials (range 5) 1374 | -10/Mines | Deemed a non-threat by the Exiles lab entrance 1374 | -10/Mines | Discovered new exit (range 5) 1378 | -10/Mines | Entered Exiles 1378 | -10/Exiles | Found Exiles lab destroyed 1398 | -10/Exiles | Discovered new exit (range 14) 1545 | -10/Exiles | Opened EX-Vault 1562 | -10/Exiles | Found Lightpack 2.0 1725 | -10/Exiles | Discovered new exit (range 11) 2413 | -10/Exiles | Entered Mines 2413 | -9/Mines | Accompanied by 3 allies 2447 | -9/Mines | Assembled infested the area 2452 | -9/Mines | Assisted by a Guerilla fighting off Assembled 2499 | -9/Mines | Core integrity fell below 20% 2500 | -9/Mines | Destroyed by D-53 Grenadier with Mini Grenade Launcher Last Messages --------------- 02447_ ALERT: Infestation in the mines, dispatching Demolisher response squad. 02452_ A derelict emerges from the shadows: "You need to get out of here! I've been tracking a group of Assembled to figure out where they're coming from, and they're closing on this area, come on!" 02454_ 5A-2VH(h): "I'll hold them off! Go on ahead or try to find another way!" 02454_ as-09146 suffers critical hit (Destroy). 02469_ R-06 Scavenger collects Aluminum Leg. 02471_ C-30 ARC bursts open, deploying its payload. 02471_ D-53 Grenadier unfolds itself. 02475_ U-05 Engineer lays Concrete. 02478_ as-49037 destroyed. 02480_ as-68915 destroyed. 02480_ as-30615 destroyed. 02482_ as-57344 destroyed. 02490_ Grenade Launcher destroyed. 02495_ The unstable cave ceiling collapses. 02495_ Carbon-fiber Leg destroyed. 02497_ Mak. Power Source destroyed. Map ----- +----------------------------------------------------+ | | | ??????????????????????????????????????????? | | ??????????????????????????????????????????? | | ??????????????????????????????????????????? | | ??????????????????????????????????????????? | | ??????????????????????????????????????????? | | ??????????????????????????????????????????? | | ??????????????????????????????????????????? | | ??????????????????????????????????????????? | | ??????????????????????????????????????????? | | ??????????????????????????????????????????? | | ??????????????????????????????????????????? | | ??????????????????????????????????????????? | | ??????????????????????????????????????????? | | ???????????????????????##?????????????????? | | ??????????????????????## ?????????????????? | | ?????????????????????## ?????????????????? | | ?????????????????????# ?????????????????? | | ?????????????????????? ?????????????????? | | ??????????????????????# ##???????????????? | | ??????????????????????# ##??????????????? | | ?????????????????????## #??????????????? | | ?????????????????????# #####??????????? | | ?????????????????????# ###????????? | | ?????????????????????# #????????? | | ????????????????????## @ ##???????? | | ???????????????###### #???????? | | ???????????? aa ###?????? | | ??????????????###### a #?????? | | ???????????????????## #?????? | | ????????###?????????### #????? | | ???????? #??????????## ! ##????? | | ????????# #??????##### #???? | | ????????# #???#### ] ##???? | | ????????# #? dd ## ##????? | | ????????# #? # ##?????? | | ????????# ## # ### #??????? | | ????????# #? ### ??# #??????? | | ????????# ### #?####??## ##??????? | | ????????# ## #?????????###???????? | | ????????# ## #???????????????????? | | ????????##### ### #???????????????????? | | ????????????###?## #???????????????????? | | ?????????????????## #???????????????????? | | ??????????????????# ##???????????????????? | | ??????????????????# #????????????????????? | | ??????????????????# #????????????????????? | | ?????????????????? #????????????????????? | | ??????????????????# #????????????????????? | | ??????????????????# "#????????????????????? | +----------------------------------------------------+ Best States ------------- Heat Dissipation 25 Energy Generation 15 Energy Capacity 250 Matter Stores 300 Matter Capacity 300 Sight Range 16 Robot Scan Range 14 Terrain Scan Density 10 Armor Coverage 150 Evasion (%) 55 Defensive Hacking 11 Item Schematics ----------------- None Robot Schematics ------------------ None Fabricated ------------ Nothing Alien Tech Used ----------------- None Achievements -------------- It Was An Accident, I Swear Challenges ------------ None Game ------ Seed EtherialThiefBeam Manual? 0 Play Time 01:16:30 Cumulative 41.1 hours Start 2022.05.16 @ 03:09:57 End 2022.05.17 @ 01:02:05 Sessions 3 Manual Loads 0 Difficulty Rogue Special Mode None Game No. 28 Rogue 26 Adventurer 0 Explorer 2 Win Type - Total 0 Types 0/0/0/0/0/0/0/0/0 Lore% 24 Gallery% 28 Achievement% 23 Wizard Run 0 Options --------- ASCII 0 Keyboard 0 Movement Numpad Keybinds 0 Fullscreen 1 Font 18/SmallcapsGlow Map View 76x50 Tactical HUD 1 Map Filters NONE Filters NONE Steam 1 RUN: c9a34d60-ab72-4d2b-b472-d50a0db38072